Cogmind - Beta 14 @@@ ROGUE MODE // 2024.09.23 @ 17:24:51 Player: THN-L0C Result: Destroyed by G-67 Veteran with Field Laser Performance ------------- Evolutions (7) 3500 Regions Visited (21) 4200 Robots Destroyed (90) 450 Value Destroyed (3305) 3305 Prototype IDs (53) 1060 Alien Tech Used (3) 600 Bonus (1228) 1228 TOTAL SCORE: 14343 Bonus ------- High Alert Combat Kills 306 Follower Combat Kills 494 Registered with UFD 300 Met Zhirov 300 Met Warlord at Base 500 MAIN.C Attacked Warlord 500 Warlord Defense Kills 590 Friendly Fire -1762 Cogmind --------- Core Integrity 0/1300 Matter 285/300 Energy 54/100 System Corruption 10% Temperature Cool (0) Movement Core (50) Location -3/Testing Parts ------- > --- POWER (3) -------- (None) > --- PROPULSION (6) --- (None) > --- UTILITY (10) ----- (None) > --- WEAPON (3) ------- (None) > --- INVENTORY (5) ---- Enhanced Quantum Rifle High-powered Disruptor Cannon Disintegrator Peak State ------------ > --- POWER ------------ Vortex Chain Reactor > --- PROPULSION ------- Heavy Treads Flexi-carbon Leg Improved Gyrokinetic Inverter Improved Linear Gravjet Cooled Antigrav System > --- UTILITY ---------- Advanced Cryofiber Web Advanced Heat Sink Large Storage Unit Gravity Neutralizer Gravity Neutralizer Improved Armor Integrity Analyzer Experimental Armor Integrity Analyzer Reaction Control System Experimental Cloaking Device Advanced Thermal Defense Suite > --- WEAPON ----------- Vortex Rail Vortex Rail Improved Remote Datajack > --- INVENTORY -------- Enhanced Biometal Leg Matter Compressor Thermal Barrier Advanced Thermal Defense Suite Improved Energy Mantle Enhanced Quantum Rifle Enhanced Quantum Rifle Enhanced Quantum Rifle Enhanced Quantum Rifle High-powered Disruptor Cannon Cooled Phase Cannon Disintegrator RU-N14's Throwing Claymores v3 [Rating: 161] Favorites ----------- Power Neutrino Core Engine Reinforced Ion Engine Power Core Neutrino Core Reactor Fusion Reactor Propulsion Overtuned Huge Scrapsphere Treads Spiked Treads Leg Myomer Leg Wheel Overtuned Huge Scrapsphere Hover Unit Cooled Antigrav System Flight Unit Cooled Field Propulsion Drive Utility Large Storage Unit Device Deep Structural Scanner Storage Large Storage Unit Processor Improved Armor Integrity Analyzer Hackware System Mapper Protection Improved Heavy Armor Plating Weapon Force Rifle Energy Gun Force Rifle Energy Cannon High-powered Disruptor Cannon Ballistic Gun Assault Rifle Ballistic Cannon Bore Cannon Launcher Rocket Launcher Special Weapon CPS Tube Slashing Weapon Makeshift Sword Piercing Weapon Heavy Pick Special Melee Weapon Datajack Build | -11 -10 -10 -9 -9 -6 -6 -6 -6 -5 -5 -5 -5 -5 -4 -4 -4 -4 -4 -3 -3 -3 ------- Run | Yrd Mat Sub Rec Scr Fac Low Low Zio Pro Fac Upp Upp Zhi Pro Fac Upp Upp War Pro Res Tes Slots Evolved 14 | . . . . . 8 . . . . 2 . . . . 2 . . . . 2 . Power 1 | . . . . . 1 . . . . . . . . . . . . . . . . Propulsion 4 | . . . . . 2 . . . . . . . . . . . . . . 2 . Utility 8 | . . . . . 5 . . . . 2 . . . . 1 . . . . . . Weapon 1 | . . . . . . . . . . . . . . . 1 . . . . . . Parts Attached 241 | 7 11 27 12 23 28 9 8 8 5 9 5 5 8 12 3 14 5 12 4 5 21 Power 18 | 1 1 1 2 2 3 . . 1 . . . . 2 . . 1 1 1 1 . 1 Engine 4 | 1 . . 2 1 . . . . . . . . . . . . . . . . . Core 9 | . 1 1 . 1 2 . . 1 . . . . 1 . . 1 1 . . . . Reactor 5 | . . . . . 1 . . . . . . . 1 . . . . 1 1 . 1 Propulsion 30 | 2 1 5 3 2 3 . . 2 1 . . . . . . . . 4 1 1 5 Treads 8 | 2 1 4 . . . . . . . . . . . . . . . . . . 1 Leg 7 | . . . 2 2 . . . . . . . . . . . . . 2 . . 1 Wheel 8 | . . 1 1 . 3 . . 2 1 . . . . . . . . . . . . Hover 6 | . . . . . . . . . . . . . . . . . . 2 1 1 2 Flight 1 | . . . . . . . . . . . . . . . . . . . . . 1 Utility 66 | 2 5 3 4 8 6 1 1 3 1 4 3 1 3 . 1 5 1 3 . 4 7 Device 30 | 1 2 1 1 2 3 1 1 2 . 1 . . 2 . . 1 . 3 . 3 6 Storage 7 | 1 1 1 . 3 1 . . . . . . . . . . . . . . . . Processor 6 | . . . 1 . 1 . . . . 1 . . . . . 2 . . . . 1 Hackware 1 | . . . . . . . . . . . . . . . . . . . . 1 . Protection 22 | . 2 1 2 3 1 . . 1 1 2 3 1 1 . 1 2 1 . . . . Artifact . | . . . . . . . . . . . . . . . . . . . . . . Weapon 127 | 2 4 18 3 11 16 8 7 2 3 5 2 4 3 12 2 8 3 4 2 . 8 Energy Gun 44 | . . 3 . 2 9 3 4 1 1 2 . 2 1 8 1 . . 3 . . 4 Energy Cannon 2 | . . . . . . . . . . . . . . . . . . . . . 2 Ballistic Gun 23 | 2 3 6 1 1 . . . . . . . . 2 . . 6 1 . 1 . . Ballistic Cannon 7 | . . 2 . 1 . 3 1 . . . . . . . . . . . . . . Launcher 5 | . . 1 . . 1 . . . . 1 . . . 1 . . 1 . . . . Special Weapon 16 | . 1 4 . 5 . 1 . . . . . . . 1 . 1 . 1 1 . 1 Impact Weapon . | . . . . . . . . . . . . . . . . . . . . . . Slashing Weapon 11 | . . 2 1 . . . . . . . 1 2 . 2 1 1 1 . . . . Piercing Weapon 18 | . . . . 2 6 1 2 1 2 2 1 . . . . . . . . . 1 Special Melee Weapon 1 | . . . 1 . . . . . . . . . . . . . . . . . . Unidentified Prototypes 18 | . . . . . 2 . . 2 . . . . 3 1 . 1 . 2 . 1 6 Parts Lost 44 | . . 1 3 . . . . . . . . . . . 3 . 1 12 1 . 23 Power 7 | . . 1 1 . . . . . . . . . . . . . . 3 . . 2 Propulsion 10 | . . . 2 . . . . . . . . . . . . . . 1 1 . 6 Utility 17 | . . . . . . . . . . . . . . . 2 . 1 5 . . 9 Weapon 10 | . . . . . . . . . . . . . . . 1 . . 3 . . 6 Highest Loss Streak 14 | . . 1 2 . . . . . . . . . . . 2 . 1 9 1 . 14 To Critical Strikes . | . . . . . . . . . . . . . . . . . . . . . . Average Slot Usage (%) 80 | . 100 93 99 86 71 73 73 72 73 74 76 76 76 75 70 70 81 88 51 56 67 Engine 1 | . 5 . 10 6 . . . . . . . . . . . . . . . . . Core 10 | . 8 13 3 6 12 13 13 13 13 11 11 11 7 5 5 7 10 9 . . . Treads 5 | . 28 27 22 . . . . . . . . . . . . . . . . . 1 Leg 6 | . . . 5 25 1 . . . . . . . . . . . . 6 10 9 5 Wheel 6 | . . . . . 11 13 13 12 13 11 11 11 11 11 10 10 10 3 . . . Device 13 | . 13 8 . 3 11 20 20 20 20 21 23 23 23 23 18 11 11 20 10 17 23 Storage 7 | . 14 8 14 11 9 6 6 6 6 5 5 5 5 5 5 5 5 5 5 4 3 Processor 1 | . . . 10 . 2 . . . . 5 5 5 5 5 5 10 15 8 5 4 5 Protection 6 | . . 5 2 8 6 6 6 6 6 5 5 5 5 5 4 6 9 8 . . . Energy Gun 7 | . . 7 . . 8 8 11 12 9 5 6 10 2 8 9 2 . 9 . . 6 Ballistic Gun 4 | . 27 18 13 1 . . . . . . . . 2 . . 6 9 3 5 4 . Ballistic Cannon 1 | . . . 10 4 . 4 . . . . . . . . . . . . . . . Special Weapon 1 | . . 2 . 3 . . . . . . . . . . . . . . 5 4 2 Slashing Weapon 1 | . . . . 3 . . . . . . . . 5 . 4 4 4 1 . . . Piercing Weapon 1 | . . . . 7 2 . 1 . 3 4 3 . . . . . . . . . . Peak Build Rating 161 | 7 10 25 26 39 78 82 82 90 82 94 93 95 99 102 101 122 120 149 101 133 161 Average Rating 60 | 6 9 20 23 27 73 80 79 80 81 91 92 94 95 96 97 101 113 134 99 114 124 On Entrance 72 | . 7 10 25 24 36 76 81 80 82 79 93 92 94 96 97 92 119 112 59 100 133 Naked Turns 152 | . . . . 125 . . . . . . . . . . . . . . . . 27 Heaviest Build 97 | 11 30 46 46 51 84 85 83 79 79 81 81 80 77 78 80 94 90 97 69 69 89 Greatest Support 72 | 40 40 40 40 40 40 40 40 40 40 40 40 40 40 40 40 40 40 60 60 72 70 Greatest Overweight (x) 29 | . . 1 1 2 4 2 2 25 1 2 2 1 1 1 1 29 29 29 1 1 3 Average Overweight (x) . | . . . . . 1 1 1 1 1 1 1 1 1 1 1 3 4 2 1 . 1 Largest Inventory Capacity 15 | 8 15 15 15 15 15 15 15 15 15 15 15 15 15 15 15 15 15 15 15 15 15 Average Capacity 13 | 7 14 10 15 11 15 15 15 15 15 15 15 15 15 15 15 15 15 15 15 15 14 Most Carried 15 | 2 11 15 15 15 15 15 15 15 15 15 15 15 15 15 15 15 15 15 14 10 15 Average Carried 13 | . 8 10 14 10 14 14 15 14 14 12 14 14 14 14 13 13 14 14 10 9 10 Final Capacity 15 | 8 15 15 15 15 15 15 15 15 15 15 15 15 15 15 15 15 15 15 15 15 5 Final Carried 15 | 2 11 15 15 15 15 15 15 15 13 15 15 15 15 15 13 15 14 15 10 9 5 Class Distribution -------------------- 48% | Scavenger-Scrapper 20% | Mutant 18% | Commander-Mutant 8% | Scavenger-Mutant Dominant Class ---------------- Mutant | -10/Materials Mutant | -10/Subcaves Mutant | -9/Recycling Commander-Mutant | -9/Scraptown Scavenger-Scrapper | -6/Factory Scavenger-Scrapper | -6/Lower Caves Scavenger-Scrapper | -6/Lower Caves Scavenger-Scrapper | -6/Zion Scavenger-Scrapper | -5/Proximity Caves Scavenger-Scrapper | -5/Factory Scavenger-Scrapper | -5/Upper Caves Scavenger-Scrapper | -5/Upper Caves Scavenger-Scrapper | -5/Zhirov Scavenger-Scrapper | -4/Proximity Caves Scavenger-Scrapper | -4/Factory Scavenger-Mutant | -4/Upper Caves Scavenger-Mutant | -4/Upper Caves Tank | -4/Warlord Gunner | -3/Proximity Caves Gunner | -3/Research Tank | -3/Testing Resources | -11 -10 -10 -9 -9 -6 -6 -6 -6 -5 -5 -5 -5 -5 -4 -4 -4 -4 -4 -3 -3 -3 ----------- Run | Yrd Mat Sub Rec Scr Fac Low Low Zio Pro Fac Upp Upp Zhi Pro Fac Upp Upp War Pro Res Tes Matter Collected 5709 | 298 475 830 506 1053 454 142 258 70 54 36 70 76 109 100 287 285 193 115 . . 298 Remotely . | . . . . . . . . . . . . . . . . . . . . . . Salvage Created 4465 | 165 520 280 144 373 619 . . . 139 70 . 100 307 208 379 85 424 245 13 . 394 Parts 234 | 10 30 11 12 28 31 . . . 11 2 . 13 9 20 17 5 11 6 5 . 13 Haulers Intercepted . | . . . . . . . . . . . . . . . . . . . . . . Recyclers Shooed 3 | 1 . . . . 1 . . . . . . . . . . . . . . . 1 Parts Field Recycled 25 | . . . . 25 . . . . . . . . . . . . . . . . . Retrieved Matter 69 | . . . . 69 . . . . . . . . . . . . . . . . . Parts Self-Destructed 85 | . . 22 . . . . 11 . 5 . . 5 4 13 . 17 4 . 4 . . Prevented 3 | . . . . . . . 1 2 . . . . . . . . . . . . . Kills | -11 -10 -10 -9 -9 -6 -6 -6 -6 -5 -5 -5 -5 -5 -4 -4 -4 -4 -4 -3 -3 -3 ------- Run | Yrd Mat Sub Rec Scr Fac Low Low Zio Pro Fac Upp Upp Zhi Pro Fac Upp Upp War Pro Res Tes Combat Hostiles Destroyed 69 | . 11 4 3 . 9 . . . 3 1 . 1 . 9 8 1 3 4 2 . 10 Melee 2 | . . . . . . . . . . . . . . 1 1 . . . . . . Guns 51 | . 11 3 1 . 7 . . . 3 1 . 1 . 3 6 1 2 3 1 . 8 Cannons 3 | . . . 2 . 1 . . . . . . . . . . . . . . . . AOE 10 | . . 1 . . . . . . . . . . . 5 . . 1 1 . . 2 Classes Destroyed 19 | 2 3 3 1 3 2 . . . 1 . . 1 . . 1 1 1 . . . . Worker 4 | . . . . . . . . . . . . . . . 1 . . . . . 3 Builder 2 | . . . . 1 . . . . . . . . . . . . . . . . 1 Tunneler 4 | 4 . . . . . . . . . . . . . . . . . . . . . Recycler 2 | 1 1 . . . . . . . . . . . . . . . . . . . . Drone 5 | . . . . . . . . . 1 . . . . 2 . . . . 2 . . Watcher 1 | . 1 . . . . . . . . . . . . . . . . . . . . Swarmer 16 | . 3 . . . 1 . . . 2 . . . . 5 5 . . . . . . Grunt 26 | . 8 . . 2 3 . . . . 1 . . . . 1 . . 1 . . 10 Brawler 3 | . . . . 1 1 . . . . . . . . . . . 1 . . . . Duelist 2 | . . . . . 1 . . . . . . . . . . . 1 . . . . Sentry 7 | . . . 3 1 2 . . . . . . . . . . . 1 . . . . Hunter 2 | . . . . . . . . . . . . . . . . 1 . 1 . . . Programmer 7 | . . . . . 1 . . . . . . . . 2 2 . . 2 . . . Behemoth 1 | . . . . . . . . . . . . 1 . . . . . . . . . Artisan 3 | . . 3 . . . . . . . . . . . . . . . . . . . Cobbler 1 | . . 1 . . . . . . . . . . . . . . . . . . . Subdweller 4 | . . 4 . . . . . . . . . . . . . . . . . . . Scrapoid 4 | . . . . 2 1 . . . 1 . . . . . . . . . . . . Samaritan 3 | . . . . . . . . . . . . . . . . . 3 . . . . Best Kill Streak 6 | 3 3 1 2 . 2 . . . 3 1 . 1 . 5 3 1 3 3 1 . 6 Combat Bots Only 5 | . 3 1 2 . 2 . . . 3 1 . 1 . 5 3 1 3 3 1 . 4 Max Kills in Single Turn 4 | 1 1 1 1 1 1 . . . 1 1 . 1 . 4 1 1 1 1 1 . 2 Gunslinging . | . . . . . . . . . . . . . . . . . . . . . . Exploded 4 | . . 1 . . . . . . . . . . . 4 . . 1 1 . . 1 Melee 1 | . . . . . . . . . . . . . . 1 1 . . . . . . Uniques/NPCs Destroyed . | . . . . . . . . . . . . . . . . . . . . . . Combat | -11 -10 -10 -9 -9 -6 -6 -6 -6 -5 -5 -5 -5 -5 -4 -4 -4 -4 -4 -3 -3 -3 -------- Run | Yrd Mat Sub Rec Scr Fac Low Low Zio Pro Fac Upp Upp Zhi Pro Fac Upp Upp War Pro Res Tes Hostile Shots Fired 868 | . 49 21 41 . 86 . . 4 39 4 . 32 . 29 61 18 20 182 20 16 246 Missed 266 | . 13 10 7 . 36 . . 2 5 1 . 12 . 12 27 7 4 64 7 3 56 Damage Taken 11406 | . 373 237 520 . 628 . . 38 563 58 . 510 . 328 618 171 399 2712 299 268 3684 Core 2156 | . 69 . 128 . 32 . . . 39 19 . 79 . . 21 42 21 432 46 98 1130 Absorbed by Shields 6 | . . . . . 6 . . . . . . . . . . . . . . . . Redirected to Shielding 5 | . 5 . . . . . . . . . . . . . . . . . . . . Ignored by Resistances 367 | . . . . . . . . . . . . . . . . . . . . . 367 Regen/Repaired (Parts) 487 | . . . . 432 . . 10 20 . 10 . . 10 . . . . 5 . . . Core Remaining (%) 70 | 100 . . . 21 . . . . 91 . . . . 90 . . . . 51 . . Volleys Fired 338 | 14 41 61 14 10 19 23 7 1 10 2 . 8 1 21 22 15 10 6 12 . 41 Largest 3 | 2 2 2 2 1 2 1 1 1 2 2 . 2 1 2 2 2 2 3 2 . 2 Hottest 282 | 40 100 100 77 . 160 80 80 80 160 160 . 160 35 160 180 80 66 282 35 . 130 Shots Fired 550 | 28 76 93 28 10 32 23 7 1 16 4 . 16 1 33 42 21 16 16 21 . 66 Gun 429 | 28 70 61 14 . 29 2 1 1 16 4 . 16 1 25 42 19 12 15 12 . 61 Cannon 51 | . . 9 14 . 3 19 6 . . . . . . . . . . . . . . Launcher 8 | . . 2 . . . . . . . . . . . 2 . . 4 . . . . Special 62 | . 6 21 . 10 . 2 . . . . . . . 6 . 2 . 1 9 . 5 Kinetic 268 | 28 70 72 28 . 3 19 6 . . . . . 1 1 . 12 12 . 12 . 4 Thermal 205 | . 6 21 . . 29 2 1 1 16 4 . 16 . 24 42 7 . 15 . . 21 Explosive 6 | . . . . . . . . . . . . . . 2 . . 4 . . . . Electromagnetic . | . . . . . . . . . . . . . . . . . . . . . . Entropic 36 | . . . . . . . . . . . . . . . . . . . . . 36 Robot Hit Streak 12 | 10 10 8 4 7 9 11 12 1 6 3 . 9 4 6 6 5 10 5 2 . 11 Robot Miss Streak 10 | 1 2 4 4 1 2 . 1 . 4 . . 3 . 2 3 5 1 2 10 . 3 Penetration Max 3 | . . . . . . . . . . . . . . . . . . . . . 3 Secondary Targets 4 | . 1 1 . . . . . . . . . . . . . . . . . . 2 Max Gunslinging Chain 1 | . 1 1 . . . . . . . . . . . . . . . . . . 1 Shots Hit Robots 368 | 19 46 39 43 33 23 2 1 1 8 3 . 11 5 20 28 10 21 9 3 . 43 Core Hits 156 | 10 27 14 5 7 13 . . . 4 2 . 5 3 11 12 4 9 5 1 . 24 Critical Kills 9 | . . . 1 . 3 . . . 1 . . . . . 3 . 1 . . . . Critical Parts Destroyed 12 | . . . 2 . . . . 1 . . . . . 2 3 1 . . . . 3 Critical Strikes 24 | . . . 3 1 3 . . 1 1 . . . . 2 8 1 1 . . . 3 Burn 2 | . . . . . . . . . . . . . . . 2 . . . . . . Destroy 18 | . . . 3 . 3 . . 1 1 . . . . 2 6 1 1 . . . . Impale 1 | . . . . 1 . . . . . . . . . . . . . . . . . Detonate 3 | . . . . . . . . . . . . . . . . . . . . . 3 Melee Attacks 148 | . . 12 29 24 12 3 4 1 5 6 3 3 4 3 16 3 15 2 . . 3 Impact . | . . . . . . . . . . . . . . . . . . . . . . Slashing 58 | . . 12 . . . . . . . . . 3 4 3 16 3 15 2 . . . Piercing 48 | . . . . 11 12 3 4 1 5 6 3 . . . . . . . . . 3 Sneak Attacks 63 | . . . 29 24 2 . . . 1 . . . . 1 . . 6 . . . . Combat Hostiles 26 | . . . 25 . . . . . . . . . . 1 . . . . . . . Follow-up Attacks . | . . . . . . . . . . . . . . . . . . . . . . Damage Inflicted 10131 | 155 471 689 283 681 705 . 19 25 234 78 . 290 335 963 850 181 1350 299 67 . 2456 Guns 6274 | 155 463 503 106 . 526 . . 25 170 78 . 290 37 483 708 181 214 289 58 . 1988 Cannons 229 | . . . 177 . 33 . 19 . . . . . . . . . . . . . . Explosions 1568 | . . 186 . . . . . . . . . . . 410 . . 559 . . . 413 Melee 1978 | . . . . 681 146 . . . 64 . . . 298 70 142 . 577 . . . . Ramming 82 | . 8 . . . . . . . . . . . . . . . . 10 9 . 55 Kinetic 2151 | 155 463 689 283 . 33 . 19 . . . . . 37 . . 109 214 . 58 . 91 Thermal 3618 | . . . . . 526 . . 25 170 78 . 290 . 483 708 72 . 289 . . 977 Explosive 969 | . . . . . . . . . . . . . . 410 . . 559 . . . . Electromagnetic . | . . . . . . . . . . . . . . . . . . . . . . Impact . | . . . . . . . . . . . . . . . . . . . . . . Slashing 1087 | . . . . . . . . . . . . . 298 70 142 . 577 . . . . Piercing 891 | . . . . 681 146 . . . 64 . . . . . . . . . . . . Entropic 1333 | . . . . . . . . . . . . . . . . . . . . . 1333 Highest Corruption 10 | . 1 1 1 . . . . . . . . . . 3 2 2 2 6 6 . 10 Average Corruption 1 | . 1 1 1 . . . . . . . . . . 2 1 2 2 3 6 . 3 Corruption Purged . | . . . . . . . . . . . . . . . . . . . . . . Corruption Blocked . | . . . . . . . . . . . . . . . . . . . . . . Effects 103 | . 5 40 12 . . . . . . . . . . 4 1 16 5 3 9 . 8 Message Errors 28 | . . 12 5 . . . . . . . . . . . . 5 1 1 3 . 1 Matter Fused 23 | . 1 8 3 . . . . . . . . . . 2 1 5 . 1 1 . 1 Heat Flow Errors 12 | . 2 3 1 . . . . . . . . . . . . 2 2 . . . 2 Energy Discharges 12 | . . 4 1 . . . . . . . . . . 2 . 2 1 1 . . 1 Parts Rejected 2 | . 1 . . . . . . . . . . . . . . . . . . . 1 Parts Fused 1 | . . 1 . . . . . . . . . . . . . . . . . . . Data Loss (minor) 10 | . 1 3 . . . . . . . . . . . . . 1 1 . 4 . . Data Loss (major) 4 | . . 3 . . . . . . . . . . . . . 1 . . . . . Misfires 5 | . . 3 1 . . . . . . . . . . . . . . . . . 1 Alerts 4 | . . 2 1 . . . . . . . . . . . . . . . 1 . . Misdirections 1 | . . . . . . . . . . . . . . . . . . . . . 1 Weapon Failures 1 | . . 1 . . . . . . . . . . . . . . . . . . . Overload Shots . | . . . . . . . . . . . . . . . . . . . . . . Overflow Damage 378 | . . . 1 32 . . . . . . . . 54 . . . 243 . . . 48 Projectiles 1 | . . . 1 . . . . . . . . . . . . . . . . . . Explosions 84 | . . . . . . . . . . . . . . . . . 36 . . . 48 Melee 293 | . . . . 32 . . . . . . . . 54 . . . 207 . . . . Knockbacks 1 | . . . . . . . . . . . . . . . . . . . . . 1 Impact 1 | . . . . . . . . . . . . . . . . . . . . . 1 Kinetic . | . . . . . . . . . . . . . . . . . . . . . . Secondary . | . . . . . . . . . . . . . . . . . . . . . . Self-Inflicted Damage 87 | . . . . . . . . . . . . . . . . . . . . . 87 Shots 2 | . . . . . . . . . . . . . . . . . . . . . 2 Rammed 11 | . 1 . . . . . . . . . . . . . . . . . . 1 9 Targets Rammed 15 | . 1 . . . . . . . . . . . . . . . . 2 2 1 9 Kicked 4 | . . . . . . . . . . . . . . . . . . 2 2 . . Crushed . | . . . . . . . . . . . . . . . . . . . . . . Highest Temperature 435 | . 268 220 435 . 285 144 120 48 395 183 . 28 . . 116 187 214 147 . . 170 Average Temperature 93 | . 63 89 188 . 97 59 50 30 142 95 . 14 . . 51 96 82 60 . . 69 Received Heat Transfer 1948 | . 159 57 198 . 147 . . . 12 27 . 142 . . 72 . 18 279 . 18 819 Effects 6 | . . . 2 . 2 . . . 2 . . . . . . . . . . . . Shutdowns 1 | . . . . . . . . . 1 . . . . . . . . . . . . Energy Bleed 1 | . . . 1 . . . . . . . . . . . . . . . . . . Interference 3 | . . . 1 . 2 . . . . . . . . . . . . . . . . Short Circuit 1 | . . . . . . . . . 1 . . . . . . . . . . . . Siege Activations . | . . . . . . . . . . . . . . . . . . . . . . Robots Corrupted . | . . . . . . . . . . . . . . . . . . . . . . Combat Hostiles . | . . . . . . . . . . . . . . . . . . . . . . Parts Fried . | . . . . . . . . . . . . . . . . . . . . . . Impact Corruptions . | . . . . . . . . . . . . . . . . . . . . . . Robots Melted 2 | . . . . . 1 . . . . . . . . . 1 . . . . . . Combat Hostiles 2 | . . . . . 1 . . . . . . . . . 1 . . . . . . Parts Melted 20 | . . 1 . . 7 . . . 1 . . 1 . 7 1 . . . . . 2 Heat Transferred 4735 | . . . . . 777 . . 37 259 111 . 407 . 629 1292 111 . 333 . . 779 Parts Sabotaged . | . . . . . . . . . . . . . . . . . . . . . . Parts Stolen . | . . . . . . . . . . . . . . . . . . . . . . Parts Stripped . | . . . . . . . . . . . . . . . . . . . . . . Power Chain Reactions . | . . . . . . . . . . . . . . . . . . . . . . Alert | -11 -10 -10 -9 -9 -6 -6 -6 -6 -5 -5 -5 -5 -5 -4 -4 -4 -4 -4 -3 -3 -3 ------- Run | Yrd Mat Sub Rec Scr Fac Low Low Zio Pro Fac Upp Upp Zhi Pro Fac Upp Upp War Pro Res Tes Peak Influence 915 | 25 184 . 102 . 404 . . . . 795 . . . . 744 . . . . 915 762 Initial 900 | . 16 . 28 . . . . . . 761 . . . . 407 . . . . 900 514 Average 233 | 13 66 . 29 . 223 . . . . 783 . . . . 546 . . . . 901 580 Maximum Alert Level 3 | . . . . . 2 . . . . 3 . . . . 3 . . . . 3 3 Low Security (%) 62 | 100 100 . 100 . 39 . . . . . . . . . . . . . . . . Level 1 9 | . . . . . 54 . . . . . . . . . . . . . . . . Level 2 18 | . . . . . 5 . . . . . . . . . 84 . . . . . 88 Level 3 9 | . . . . . . . . . . 100 . . . . 15 . . . . 100 11 Level 4 . | . . . . . . . . . . . . . . . . . . . . . . Level 5 . | . . . . . . . . . . . . . . . . . . . . . . High Security . | . . . . . . . . . . . . . . . . . . . . . . Max Security . | . . . . . . . . . . . . . . . . . . . . . . Squads Dispatched 14 | . 2 . . . 2 . . . . 2 . . . . 1 . . . . 1 6 Investigation 5 | . 1 . . . 1 . . . . 1 . . . . . . . . . 1 1 Extermination 1 | . . . . . . . . . . . . . . . . . . . . . 1 Reinforcement 7 | . 1 . . . . . . . . 1 . . . . 1 . . . . . 4 Assault . | . . . . . . . . . . . . . . . . . . . . . . Garrison 1 | . . . . . 1 . . . . . . . . . . . . . . . . Intercept . | . . . . . . . . . . . . . . . . . . . . . . Searches Triggered 2 | . . . . . . . . . . . . . . . 1 . . . . . 1 Construction Impeded 1 | . . . . . . . . . . . . . . . . . . . . . 1 Haulers Reinforced 1 | . . . . . . . . . . . . . . . . . . . . . 1 Active Scanning Responses . | . . . . . . . . . . . . . . . . . . . . . . Cargo Convoy Interrupts . | . . . . . . . . . . . . . . . . . . . . . . Stealth | -11 -10 -10 -9 -9 -6 -6 -6 -6 -5 -5 -5 -5 -5 -4 -4 -4 -4 -4 -3 -3 -3 --------- Run | Yrd Mat Sub Rec Scr Fac Low Low Zio Pro Fac Upp Upp Zhi Pro Fac Upp Upp War Pro Res Tes Distress Signals 5 | . . . . . 1 . . . 1 . . . . . 1 . . . . . 2 Communications Jammed . | . . . . . . . . . . . . . . . . . . . . . . Distress Signals . | . . . . . . . . . . . . . . . . . . . . . . Times Spotted 252 | . 16 21 5 . 23 . 6 2 24 2 . 5 . 9 21 4 3 65 10 3 33 Peak Tracking Total 17 | . 3 3 2 . 5 . 4 1 9 2 . 4 . 5 9 2 3 17 5 4 13 Tactical Retreats 17 | . . 2 . . 1 . 1 . 4 . . . . . 5 . . . . . 4 Traps | -11 -10 -10 -9 -9 -6 -6 -6 -6 -5 -5 -5 -5 -5 -4 -4 -4 -4 -4 -3 -3 -3 ------- Run | Yrd Mat Sub Rec Scr Fac Low Low Zio Pro Fac Upp Upp Zhi Pro Fac Upp Upp War Pro Res Tes Traps Triggered 9 | . 2 . . . 2 . . . . 2 . . . . 1 . . . . . 2 Indirectly . | . . . . . . . . . . . . . . . . . . . . . . Trap Hack Attempts . | . . . . . . . . . . . . . . . . . . . . . . Triggered . | . . . . . . . . . . . . . . . . . . . . . . Disarmed . | . . . . . . . . . . . . . . . . . . . . . . Reprogrammed . | . . . . . . . . . . . . . . . . . . . . . . Reused . | . . . . . . . . . . . . . . . . . . . . . . Traps Extracted . | . . . . . . . . . . . . . . . . . . . . . . Installed . | . . . . . . . . . . . . . . . . . . . . . . Triggered 14 | . . . . . . . 2 . . . . . . 2 . . . 10 . . . Machines | -11 -10 -10 -9 -9 -6 -6 -6 -6 -5 -5 -5 -5 -5 -4 -4 -4 -4 -4 -3 -3 -3 ---------- Run | Yrd Mat Sub Rec Scr Fac Low Low Zio Pro Fac Upp Upp Zhi Pro Fac Upp Upp War Pro Res Tes Machines Disabled 18 | . . 2 . . 4 2 . . . . . . . . 1 . . . . . 9 Max in Single Turn 2 | . . 1 . . . 1 . . . . . . . . 1 . . . . . 2 Garrison Access 2 | . . . . . 1 . . . . . . . . . 1 . . . . . . Machines Repaired . | . . . . . . . . . . . . . . . . . . . . . . Machines Dismantled . | . . . . . . . . . . . . . . . . . . . . . . Machines Sabotaged . | . . . . . . . . . . . . . . . . . . . . . . Overloaded Fab Kills . | . . . . . . . . . . . . . . . . . . . . . . Hacking | -11 -10 -10 -9 -9 -6 -6 -6 -6 -5 -5 -5 -5 -5 -4 -4 -4 -4 -4 -3 -3 -3 --------- Run | Yrd Mat Sub Rec Scr Fac Low Low Zio Pro Fac Upp Upp Zhi Pro Fac Upp Upp War Pro Res Tes Machines Accessed 40 | . 5 2 11 3 4 2 . . . 1 1 1 4 . 1 1 . 1 . 1 2 Terminals 15 | . 5 . 6 . 1 . . . . 1 . . . . . . . . . . 2 Fabricators . | . . . . . . . . . . . . . . . . . . . . . . Repair Stations . | . . . . . . . . . . . . . . . . . . . . . . Recycling Units 7 | . . . 5 . 1 . . . . . . . . . . . . . . 1 . Scanalyzers . | . . . . . . . . . . . . . . . . . . . . . . Garrison Access 3 | . . . . . 2 . . . . . . . . . 1 . . . . . . Total Hacks 119 | . 13 10 28 28 7 2 . . . 2 1 1 17 . 2 1 . 1 . 2 4 Successful 85 | . 7 10 11 28 2 2 . . . 1 1 1 17 . 1 1 . 1 . . 2 Failed 34 | . 6 . 17 . 5 . . . . 1 . . . . 1 . . . . 2 2 Catastrophic 7 | . 1 . . . 2 . . . . 1 . . . . . . . . . 1 2 Database Lockouts . | . . . . . . . . . . . . . . . . . . . . . . Manual 44 | . 13 . 22 . 4 1 . . . . . . . . . . . . . 2 2 Terminals 38 | . 13 . 17 . 2 . . . . 2 . . . . . . . . . . 4 Fabricators . | . . . . . . . . . . . . . . . . . . . . . . Repair Stations . | . . . . . . . . . . . . . . . . . . . . . . Recycling Units 15 | . . . 11 . 2 . . . . . . . . . . . . . . 2 . Scanalyzers . | . . . . . . . . . . . . . . . . . . . . . . Garrison Access 5 | . . . . . 3 . . . . . . . . . 2 . . . . . . Terminal Hacks 65 | . . 10 1 28 . 2 . . . 1 1 1 17 . . 1 . 1 . . 2 Record 35 | . . 8 . 21 . 1 . . . . . . 5 . . . . . . . . Part Schematic 4 | . . . . . . . . . . . . . 4 . . . . . . . . Robot Analysis 10 | . . . . 6 . . . . . . . . 4 . . . . . . . . Prototype ID Bank 4 | . . . . . . . . . . . . . 4 . . . . . . . . Open Door 6 | . . 1 . . . 1 . . . . 1 1 . . . 1 . 1 . . . Terminal Index 1 | . . . 1 . . . . . . . . . . . . . . . . . . Locate Traps 1 | . . . . . . . . . . 1 . . . . . . . . . . . Recall Investigation 1 | . . . . . . . . . . . . . . . . . . . . . 1 Zone Layout 1 | . . . . . . . . . . . . . . . . . . . . . 1 Derelict Proto ID Bank 2 | . . 1 . 1 . . . . . . . . . . . . . . . . . Fabricator Hacks . | . . . . . . . . . . . . . . . . . . . . . . Repair Station Hacks . | . . . . . . . . . . . . . . . . . . . . . . Recycling Unit Hacks 2 | . . . 2 . . . . . . . . . . . . . . . . . . Retrieve Components 2 | . . . 2 . . . . . . . . . . . . . . . . . . Scanalyzer . | . . . . . . . . . . . . . . . . . . . . . . Garrison Access Hacks 2 | . . . . . 1 . . . . . . . . . 1 . . . . . . Seal Access 2 | . . . . . 1 . . . . . . . . . 1 . . . . . . Unauthorized Hacks 16 | . 7 . 8 . 1 . . . . . . . . . . . . . . . . Terminals 12 | . 7 . 5 . . . . . . . . . . . . . . . . . . Botnet 3 | . 2 . 1 . . . . . . . . . . . . . . . . . . Skim 9 | . 5 . 4 . . . . . . . . . . . . . . . . . . Fabricators . | . . . . . . . . . . . . . . . . . . . . . . Repair Stations 1 | . . . . . 1 . . . . . . . . . . . . . . . . Recycling Units 3 | . . . 3 . . . . . . . . . . . . . . . . . . Tunnel 3 | . . . 3 . . . . . . . . . . . . . . . . . . Scrapoids 1 | . . . . . 1 . . . . . . . . . . . . . . . . Scanalyzers . | . . . . . . . . . . . . . . . . . . . . . . Garrison Access . | . . . . . . . . . . . . . . . . . . . . . . Data Cores Recovered . | . . . . . . . . . . . . . . . . . . . . . . Used . | . . . . . . . . . . . . . . . . . . . . . . Hacking Detections 22 | . 5 . 8 . 4 . . . . 1 . . . . 1 . . . . 1 2 Full Trace Events 1 | . . . . . . . . . . . . . . . . . . . . 1 . Feedback Events . | . . . . . . . . . . . . . . . . . . . . . . Feedback Blocked . | . . . . . . . . . . . . . . . . . . . . . . Robot Schematics Acquired 3 | . . . . . . . . 3 . . . . . . . . . . . . . Robots Built . | . . . . . . . . . . . . . . . . . . . . . . Authchips . | . . . . . . . . . . . . . . . . . . . . . . Time . | . . . . . . . . . . . . . . . . . . . . . . Total Robot Build Rating . | . . . . . . . . . . . . . . . . . . . . . . Part Schematics Acquired 18 | . . . . . . . . 14 . . . . 4 . . . . . . . . Parts Built . | . . . . . . . . . . . . . . . . . . . . . . Authchips . | . . . . . . . . . . . . . . . . . . . . . . Time . | . . . . . . . . . . . . . . . . . . . . . . Total Part Build Rating . | . . . . . . . . . . . . . . . . . . . . . . Parts Repaired . | . . . . . . . . . . . . . . . . . . . . . . Time . | . . . . . . . . . . . . . . . . . . . . . . Parts Recycled . | . . . . . . . . . . . . . . . . . . . . . . Recycled Matter . | . . . . . . . . . . . . . . . . . . . . . . Retrieved Matter . | . . . . . . . . . . . . . . . . . . . . . . Retrieved Components 1 | . . . 1 . . . . . . . . . . . . . . . . . . Parts Scanalyzed . | . . . . . . . . . . . . . . . . . . . . . . Part Schematics Acquired . | . . . . . . . . . . . . . . . . . . . . . . Parts Damaged . | . . . . . . . . . . . . . . . . . . . . . . Bothacking | -11 -10 -10 -9 -9 -6 -6 -6 -6 -5 -5 -5 -5 -5 -4 -4 -4 -4 -4 -3 -3 -3 ------------ Run | Yrd Mat Sub Rec Scr Fac Low Low Zio Pro Fac Upp Upp Zhi Pro Fac Upp Upp War Pro Res Tes Used RIF Installer . | . . . . . . . . . . . . . . . . . . . . . . Robots Hacked 16 | . . . 2 13 . . . . . . . . . . . . . . . . 1 Non-combat 7 | . . . 2 5 . . . . . . . . . . . . . . . . . Combat 8 | . . . . 8 . . . . . . . . . . . . . . . . . Robot Hacks Applied 15 | . . . 2 13 . . . . . . . . . . . . . . . . . parse_system 15 | . . . 2 13 . . . . . . . . . . . . . . . . . Manual 1 | . . . . . . . . . . . . . . . . . . . . . 1 Relay Couplers Released . | . . . . . . . . . . . . . . . . . . . . . . Fabnet Peak Effective % . | . . . . . . . . . . . . . . . . . . . . . . Robots Rewired 11 | . . . 11 . . . . . . . . . . . . . . . . . . Allies Hacked 3 | . . . 3 . . . . . . . . . . . . . . . . . . Hacks Repelled . | . . . . . . . . . . . . . . . . . . . . . . Allies | -11 -10 -10 -9 -9 -6 -6 -6 -6 -5 -5 -5 -5 -5 -4 -4 -4 -4 -4 -3 -3 -3 -------- Run | Yrd Mat Sub Rec Scr Fac Low Low Zio Pro Fac Upp Upp Zhi Pro Fac Upp Upp War Pro Res Tes Total Allies 24 | . . . 11 5 5 . . . . . . . . . 3 . . . . . . Largest Group 14 | . . . 9 14 7 2 2 2 2 . . . . . 3 . . . . . . Highest-Rated Group 365 | . . . 130 365 222 56 56 56 56 . . . . . 138 . . . . . . Highest-Rated Ally 47 | . . . 27 47 47 28 28 28 28 . . . . . 46 . . . . . . Total Orders 11 | . . . . 5 . . 4 2 . . . . . . . . . . . . . STAY 4 | . . . . 1 . . 2 1 . . . . . . . . . . . . . FOLLOW 4 | . . . . 1 . . 2 1 . . . . . . . . . . . . . DROP 1 | . . . . 1 . . . . . . . . . . . . . . . . . COLLECT 2 | . . . . 2 . . . . . . . . . . . . . . . . . Ally Attacks 107 | . . . 5 . 64 . 4 . 20 . . . . . 14 . . . . . . Total Damage 2679 | . . . 144 . 1915 . 60 . 242 . . . . . 318 . . . . . . Kills 20 | . . . 2 . 16 . 1 . 1 . . . . . . . . . . . . Allies Corrupted . | . . . . . . . . . . . . . . . . . . . . . . Allies Melted . | . . . . . . . . . . . . . . . . . . . . . . Intel | -11 -10 -10 -9 -9 -6 -6 -6 -6 -5 -5 -5 -5 -5 -4 -4 -4 -4 -4 -3 -3 -3 ------- Run | Yrd Mat Sub Rec Scr Fac Low Low Zio Pro Fac Upp Upp Zhi Pro Fac Upp Upp War Pro Res Tes Robot Analysis Total 10 | . . . . 6 . . . . . . . . 4 . . . . . . . . Derelict Logs Recovered 14 | . . 2 . 3 . 1 1 2 1 . 1 1 . . . 1 1 . . . . Drone Launches . | . . . . . . . . . . . . . . . . . . . . . . Drone Recoveries . | . . . . . . . . . . . . . . . . . . . . . . Exploration | -11 -10 -10 -9 -9 -6 -6 -6 -6 -5 -5 -5 -5 -5 -4 -4 -4 -4 -4 -3 -3 -3 ------------- Run | Yrd Mat Sub Rec Scr Fac Low Low Zio Pro Fac Upp Upp Zhi Pro Fac Upp Upp War Pro Res Tes Turns Passed 39921 | 148 1148 5414 1388 8633 855 338 776 15032 350 282 283 559 256 360 309 937 870 843 428 48 664 Spaces Moved 15726 | 63 343 2013 724 5135 533 295 757 1717 359 294 314 383 273 286 247 476 426 503 223 32 330 Core 723 | 2 . . . 646 . . . 2 . . . . . . . 1 19 4 . . 49 Treads 2975 | 61 343 1986 563 . . . . . . . . . . . . . . . . . 22 Legs 5251 | . . . 153 4489 26 . . . . . . . . . . . . 278 223 24 58 Wheels 6560 | . . 27 8 . 507 295 757 1715 359 294 314 383 273 286 247 475 407 213 . . . Hover 217 | . . . . . . . . . . . . . . . . . . 8 . 8 201 Flight . | . . . . . . . . . . . . . . . . . . . . . . Fastest Speed 50 | 50 160 120 120 50 80 80 80 80 80 80 80 80 80 80 80 80 80 90 170 100 50 Average Speed 134 | 156 160 182 171 160 91 89 81 81 80 80 82 80 80 80 80 103 163 149 170 126 140 Slowest Speed 1500 | 160 160 260 260 190 190 90 90 1300 80 90 90 80 80 80 80 1500 1500 1500 170 170 281 Overloaded Moves . | . . . . . . . . . . . . . . . . . . . . . . Propulsion Burnouts . | . . . . . . . . . . . . . . . . . . . . . . Robots Hopped 9 | . . . . . . . . 1 8 . . . . . . . . . . . . Cave-ins Triggered . | . . . . . . . . . . . . . . . . . . . . . . Teleports 1 | . . . . . . . . . . . . . . . . . . . . . 1 Exploration Rate (%) 48 | 4 54 77 96 94 17 50 56 83 41 12 56 45 61 49 9 60 63 56 45 1 31 Regions Visited 21 Branch Regions 16 Pre-discovered Areas 18 | . 2 1 3 7 . . . . 1 . . . 3 . . . 1 . . . . Known Exits Taken 11 | . 1 . . . 1 1 1 . 1 1 1 . . 1 1 . 1 . . 1 . Unknown Exits Taken 10 | 1 . 1 1 1 . . . 1 . . . 1 1 . . 1 . 1 1 . . Scrap Searched 35 | . . 12 . 5 . 3 1 4 2 . 2 2 . . . 1 3 . . . . Spaces Dug 82 | . 6 7 . . 7 13 7 . 3 5 3 3 . 2 10 3 7 2 . . 4 Terrain Destroyed 232 | . 6 26 6 . 7 14 7 . 3 5 3 3 . 38 12 3 23 7 9 . 60 Melee 52 | . . 2 . . 7 . 2 . 3 5 3 3 . 2 10 3 7 2 . . 3 Projectile 79 | . 6 5 6 . . 13 5 . . . . . . . 2 . 2 5 9 . 26 AOE 100 | . . 19 . . . . . . . . . . . 36 . . 14 . . . 31 Terrain Rammed . | . . . . . . . . . . . . . . . . . . . . . . Walls Destroyed . | . . . . . . . . . . . . . . . . . . . . . . Machines Disabled . | . . . . . . . . . . . . . . . . . . . . . . Actions | -11 -10 -10 -9 -9 -6 -6 -6 -6 -5 -5 -5 -5 -5 -4 -4 -4 -4 -4 -3 -3 -3 --------- Run | Yrd Mat Sub Rec Scr Fac Low Low Zio Pro Fac Upp Upp Zhi Pro Fac Upp Upp War Pro Res Tes Total 33715 | 87 857 3601 828 5512 841 336 896 15347 388 322 332 615 303 372 308 892 569 585 240 37 447 Wait 16989 | 2 454 1446 38 257 224 2 121 13606 11 . 4 212 10 45 18 375 107 32 . . 25 Move 15688 | 62 342 2012 723 5134 532 294 756 1714 342 293 313 382 272 285 246 475 425 502 222 32 330 Hop 9 | . . . . . . . . 1 8 . . . . . . . . . . . . Pick Up 141 | 2 7 22 6 38 14 2 . 7 3 2 3 3 3 . 1 4 1 13 . . 10 Fast Attach 73 | 7 1 4 1 15 3 . . 2 . 1 1 . 1 4 . 8 3 4 1 4 13 Attach 49 | . . 1 2 4 6 1 . 1 2 3 2 1 . 2 3 . 1 7 3 1 9 Detach 19 | . . . . 2 3 . . . . 2 . . . 2 1 . 1 4 . . 4 Swap 122 | . 10 22 9 4 19 8 8 5 3 5 2 4 8 6 . 7 1 1 . . . Drop 109 | . 1 16 4 24 9 3 . 9 4 . 4 2 4 4 1 4 5 12 . . 3 Fire 338 | 14 41 61 14 10 19 23 7 1 10 2 . 8 1 21 22 15 10 6 12 . 41 Melee 148 | . . 12 29 24 12 3 4 1 5 6 3 3 4 3 16 3 15 2 . . 3 Ram 1 | . . . . . . . . . . . . . . . . . . . . . 1 Kick 4 | . . . . . . . . . . . . . . . . . . 2 2 . . Crush 9 | . 1 . . . . . . . . . . . . . . . . . . . 8 Escape Stasis 8 | . . . . . . . . . . 8 . . . . . . . . . . . Rewire 3 | . . 1 2 . . . . . . . . . . . . . . . . . . Trap . | . . . . . . . . . . . . . . . . . . . . . . Miscellaneous 5 | . . 4 . . . . . . . . . . . . . 1 . . . . . Route ------- -11/Scrapyard -10/Materials (discovered 4 exits: Mat / [*Min x2] / *Sub) -10/Subcaves (discovered 3 exits: *Mat x2 / *Rec) -9/Recycling (discovered 2 exits: [*Fac] / *Scr) -9/Scraptown (discovered 2 exits: *Fac x2) -6/Factory (discovered 6 exits: Fac x4 / *Low x2) -6/Lower Caves -6/Lower Caves (discovered 2 exits: Fac / *Zio) -6/Zion (discovered 2 exits: Dee / [*Pro]) -5/Proximity Caves -5/Factory (discovered 2 exits: *Upp x2) -5/Upper Caves -5/Upper Caves (discovered 2 exits: Fac / *Zhi) -5/Zhirov -4/Proximity Caves -4/Factory (discovered 3 exits: *Upp / Ext / Arm) -4/Upper Caves -4/Upper Caves -4/Warlord -3/Proximity Caves -3/Research (discovered 3 exits: Res / *Tes x2) -3/Testing History --------- Turn | Location | Event 26 | -11/Scrapyard | Discovered new exit (range 16) 149 | -11/Scrapyard | Entered Materials 316 | -10/Materials | Build established: Mutant 620 | -10/Materials | Discovered new exit (range 8) 785 | -10/Materials | Discovered new exit (range 7) 938 | -10/Materials | Loaded intel: 8 terminal locations 1005 | -10/Materials | Identified exit to Subcaves 1005 | -10/Materials | Identified exit to Materials 1105 | -10/Materials | Learned location of Subcaves (-10) 1138 | -10/Materials | Learned 2 Storage zone layouts 1163 | -10/Materials | Learned location of Recycling (-9) 1200 | -10/Materials | Learned 4 Subcaves zone layouts 1246 | -10/Materials | Learned location of 2 exits from Subcaves 1297 | -10/Materials | Entered Subcaves 1298 | -10/Subcaves | Identified exit to Materials 1347 | -10/Subcaves | Ambushed by angry Subdweller bent on revenge 1470 | -10/Subcaves | Shifting Twisted Machinery released Sub. Shrapnel Launcher 1501 | -10/Subcaves | Ambushed by swarm of Subdwellers 1645 | -10/Subcaves | Shifting Twisted Machinery released Sub. Monowheel 1703 | -10/Subcaves | Ambushed by angry Subdweller bent on revenge 2103 | -10/Subcaves | A swath of the cavern ceiling suddenly collapsed 2443 | -10/Subcaves | A swath of the cavern ceiling suddenly collapsed 2864 | -10/Subcaves | Learned location of Storage (-9) 2920 | -10/Subcaves | Visited 4L-MR0's lab 2942 | -10/Subcaves | Found Rainbow Chip 3207 | -10/Subcaves | Disturbed a concealed Subdweller 6560 | -10/Subcaves | Shifting Twisted Machinery released Sub. Machine Gun 6600 | -10/Subcaves | Shifting Twisted Machinery released Sub. Power Source 6637 | -10/Subcaves | Learned 4 Materials zone layouts 6694 | -10/Subcaves | Discovered new exit (range 6) 6711 | -10/Subcaves | Entered Recycling 7419 | -9/Recycling | Scanned before Scraplab entrance 7548 | -9/Recycling | Discovered new exit (range 15) 7795 | -9/Recycling | Core integrity fell below 50% 8064 | -9/Recycling | Entered Scraplab 8079 | -9/Recycling | Discovered new exit (range 3) 8099 | -9/Recycling | Entered Scraptown 8099 | -9/Scraptown | Accompanied by 9 allies 8099 | -9/Scraptown | System corruption cleaned by C-Scrubber 8116 | -9/Scraptown | Build established: Commander-Mutant 8512 | -9/Scraptown | Discovered new exit (range 11) 8612 | -9/Scraptown | Scanned Subdweller tech in exchange for log data 8618 | -9/Scraptown | Learned Factory emergency access door positions 8622 | -9/Scraptown | Learned location of Warlord (-4) 8685 | -9/Scraptown | Visited Fellowship of the Rings 8722 | -9/Scraptown | Visited Red Mages 8798 | -9/Scraptown | Visited TADAMA 8822 | -9/Scraptown | Visited SPCMW 9161 | -9/Scraptown | Visited Awakened 9310 | -9/Scraptown | Visited CR-KLE's Repair Center 9359 | -9/Scraptown | Visited IN-MT5's Study 9431 | -9/Scraptown | Visited UFD Registry 9431 | -9/Scraptown | Registered with UFD as "Pipeforce" 9501 | -9/Scraptown | Visited Science Guys 9594 | -9/Scraptown | Visited Curators Association 9693 | -9/Scraptown | Delivered Scrap Shield to a Scientist 9945 | -9/Scraptown | Visited Derelict Rescue Squad 10010 | -9/Scraptown | Visited Research Penetration Think Tank 10160 | -9/Scraptown | Visited Junk Repository 10242 | -9/Scraptown | Visited Analyses Database 10301 | -9/Scraptown | Visited Scrapoid Pod Storage 10346 | -9/Scraptown | Visited LU-1G1's Boring Crew 10443 | -9/Scraptown | Visited Cartography Club 10456 | -9/Scraptown | Released all parts (7) 10508 | -9/Scraptown | Learned location of Lower Caves (-6) 10508 | -9/Scraptown | Learned location of Proximity Caves (-6) 10508 | -9/Scraptown | Learned location of Testing (-3) 10508 | -9/Scraptown | Learned location of 1 exit from Lower Caves 10508 | -9/Scraptown | Learned 8 Factory zone layouts 10508 | -9/Scraptown | Learned 16 Factory zone layouts 10508 | -9/Scraptown | Learned 20 Factory zone layouts 10508 | -9/Scraptown | Learned 24 Factory zone layouts 10508 | -9/Scraptown | Learned 8 Research zone layouts 10508 | -9/Scraptown | Learned 12 Lower Caves zone layouts 10508 | -9/Scraptown | Learned 20 Lower Caves zone layouts 10508 | -9/Scraptown | Learned 8 Upper Caves zone layouts 10508 | -9/Scraptown | Learned 16 Upper Caves zone layouts 10508 | -9/Scraptown | Learned 16 Proximity Caves zone layouts 10508 | -9/Scraptown | Learned Factory emergency access door positions 10508 | -9/Scraptown | Learned location of 2 exits from Research 10522 | -9/Scraptown | Found Deep Structural Scanner 10553 | -9/Scraptown | Found Scrapoid Pod 10660 | -9/Scraptown | Discovered new exit (range 5) 12753 | -9/Scraptown | Scrapoid Pod released 09S05-D (x5) 13044 | -9/Scraptown | Found DRS Beacon 13661 | -9/Scraptown | Murdered 4 allies 14701 | -9/Scraptown | CR-KLE repaired 5 parts 15376 | -9/Scraptown | Build established: Scavenger-Mutant 16732 | -9/Scraptown | Entered Factory 16732 | -6/Factory | Accompanied by 7 allies 16732 | -6/Factory | Evolved 8 slots: Power x1, Propulsion x2, Utility x5 16733 | -6/Factory | Identified exit to Factory 16733 | -6/Factory | Identified exit to Lower Caves 16847 | -6/Factory | Found Scrap Suit 17154 | -6/Factory | Found Scrap Suit 17180 | -6/Factory | Lost 4 allies 17194 | -6/Factory | Build established: Scavenger-Scrapper 17411 | -6/Factory | Garrison activated, responded to threat 17466 | -6/Factory | Scrapoid reinforcements arrived 17504 | -6/Factory | Lost 3 allies 17587 | -6/Factory | Entered Lower Caves 17587 | -6/Lower Caves | Accompanied by 2 allies 17588 | -6/Lower Caves | Identified exit to Lower Caves 17589 | -6/Lower Caves | UFD Scientist delivered a prototype 17598 | -6/Lower Caves | Found Prototype Protection 17603 | -6/Lower Caves | Encountered a Warlord checkpoint 17879 | -6/Lower Caves | Acquired the password to a Derelict Tinkerer's latest research 17888 | -6/Lower Caves | Found Prototype Special Weapon 17925 | -6/Lower Caves | Entered another Lower Caves area 17925 | -6/Lower Caves | Accompanied by 2 allies 17926 | -6/Lower Caves | Identified exit to Zion 17932 | -6/Lower Caves | Encountered a Warlord checkpoint 18701 | -6/Lower Caves | Entered Zion 18701 | -6/Zion | Accompanied by 2 allies 18787 | -6/Zion | Discovered new exit (range 12) 18922 | -6/Zion | Identified exit to Deep Caves 29147 | -6/Zion | Received a visual enhancement algorithm 29522 | -6/Zion | Given the Hacking Drone Bay 33236 | -6/Zion | Identified Enh. Scrap Shield 33506 | -6/Zion | Found Prototype Device 33510 | -6/Zion | Identified Hacking Drone Bay 33733 | -6/Zion | Entered Proximity Caves 33733 | -5/Proximity Caves | Accompanied by 2 allies 33745 | -5/Proximity Caves | Spotter reported a threat 33768 | -5/Proximity Caves | Attracted the attention of an 0b10 checkpoint 33903 | -5/Proximity Caves | Learned location of Armory (-4) 33931 | -5/Proximity Caves | Spotter reported a threat 33936 | -5/Proximity Caves | Spotter reported a threat 33942 | -5/Proximity Caves | Spotted B-75 Beast 34068 | -5/Proximity Caves | Spotter reported a threat 34083 | -5/Proximity Caves | Entered Factory 34083 | -5/Factory | Evolved 2 slots: Utility x2 34084 | -5/Factory | Identified exit to Upper Caves 34365 | -5/Factory | Entered Upper Caves 34366 | -5/Upper Caves | Encountered a Warlord checkpoint 34366 | -5/Upper Caves | Identified exit to Upper Caves 34648 | -5/Upper Caves | Entered another Upper Caves area 34649 | -5/Upper Caves | Identified exit to Factory 34700 | -5/Upper Caves | Spotted B-75 Beast 34724 | -5/Upper Caves | Destroyed B-75 Beast 35190 | -5/Upper Caves | Discovered new exit (range 17) 35207 | -5/Upper Caves | Entered Zhirov 35207 | -5/Zhirov | Discovered new exit (range 3) 35222 | -5/Zhirov | Met Zhirov 35236 | -5/Zhirov | Learned location of Command (-1) 35248 | -5/Zhirov | Zhirov requested help retrieving the SGEMP Prototype 35262 | -5/Zhirov | Found Alien Artifact 35262 | -5/Zhirov | Identified Integrated Dissipator 35262 | -5/Zhirov | Installed Integrated Dissipator, increased core heat dissipation (+20) 35278 | -5/Zhirov | Found Alien Artifact 35463 | -5/Zhirov | Entered Proximity Caves 35466 | -4/Proximity Caves | Spotter reported a threat 35519 | -4/Proximity Caves | Spotter reported a threat 35537 | -4/Proximity Caves | Identified Molecular Deconstructor 35810 | -4/Proximity Caves | Discovered exit to Factory (range 14) 35823 | -4/Proximity Caves | Entered Factory 35823 | -4/Factory | Evolved 2 slots: Utility x1, Weapon x1 35824 | -4/Factory | Identified exit to Upper Caves 35824 | -4/Factory | Identified exit to Extension 35824 | -4/Factory | Identified exit to Armory 36073 | -4/Factory | Search patrols dispatched 36090 | -4/Factory | Allied Derelicts emerged from ambush trap array 36132 | -4/Factory | Entered Upper Caves 36141 | -4/Upper Caves | Activated DRS Beacon 36151 | -4/Upper Caves | Lost 3 allies 36211 | -4/Upper Caves | Learned 4 Research zone layouts 36259 | -4/Upper Caves | Found Alien Artifact 36259 | -4/Upper Caves | Identified Core Expander 36259 | -4/Upper Caves | Installed Core Expander, added new Power slot 36470 | -4/Upper Caves | Build established: Mutant 36976 | -4/Upper Caves | Discovered new exit (range 7) 37069 | -4/Upper Caves | Entered another Upper Caves area 37070 | -4/Upper Caves | Identified exit to Warlord 37258 | -4/Upper Caves | Build established: Scavenger-Mutant 37320 | -4/Upper Caves | Attracted the attention of an 0b10 checkpoint 37939 | -4/Upper Caves | Entered Warlord 37977 | -4/Warlord | System corruption cleaned by Quarantine Array 38073 | -4/Warlord | Found Prototype Special Weapon 38075 | -4/Warlord | Identified RU-N14's Throwing Claymores v3 38075 | -4/Warlord | Found RU-N14's Throwing Claymores v3 38123 | -4/Warlord | Received a Watcher feed algorithm from an ecstatic Tinkerer 38148 | -4/Warlord | Visited the Vortex Lab 38155 | -4/Warlord | Found Prototype Energy Gun 38156 | -4/Warlord | Found Prototype Energy Gun 38164 | -4/Warlord | Warlord's base attacked by MAIN.C 38170 | -4/Warlord | Identified Vortex Rail (x2) 38190 | -4/Warlord | Rebuked by Warlord 38226 | -4/Warlord | Found Prototype Reactor 38252 | -4/Warlord | Found Prototype Hackware 38257 | -4/Warlord | Found Prototype Processor 38260 | -4/Warlord | Identified Exp. Armor Integrity Analyzer 38273 | -4/Warlord | Found Prototype Device 38290 | -4/Warlord | Found Prototype Device 38426 | -4/Warlord | Identified Vortex Chain Reactor 38466 | -4/Warlord | Identified Thermal Barrier 38506 | -4/Warlord | Lost 8 allies 38507 | -4/Warlord | Identified Exp. Cloaking Device 38512 | -4/Warlord | Build established: Tank 38513 | -4/Warlord | Warlord forces counterattacked 38566 | -4/Warlord | Identified System Mapper 38604 | -4/Warlord | Spotted Striker 38609 | -4/Warlord | Spotted Executioner 38612 | -4/Warlord | Spotted Executioner 38669 | -4/Warlord | Lost 16 allies 38683 | -4/Warlord | Spotted Executioner 38696 | -4/Warlord | P-70 Sage assimilated allied J3-Z7K(b) 38736 | -4/Warlord | Lost 3 parts (3u) 38746 | -4/Warlord | Lost 4 allies 38773 | -4/Warlord | Discovered new exit (range 9) 38773 | -4/Warlord | Spotted Executioner 38774 | -4/Warlord | Spotted Executioner 38782 | -4/Warlord | Entered Proximity Caves 38785 | -3/Proximity Caves | Spotter reported a threat 38798 | -3/Proximity Caves | Spotter reported a threat 38811 | -3/Proximity Caves | Lost 9 parts (3p1n2u3w) 39036 | -3/Proximity Caves | Spotter reported a threat 39045 | -3/Proximity Caves | Spotter reported a threat 39073 | -3/Proximity Caves | Build established: Gunner 39097 | -3/Proximity Caves | Spotter reported a threat 39140 | -3/Proximity Caves | Spotter reported a threat 39179 | -3/Proximity Caves | Discovered new exit (range 18) 39210 | -3/Proximity Caves | Entered Research 39210 | -3/Research | Evolved 2 slots: Propulsion x2 39211 | -3/Research | Identified exit to Research 39211 | -3/Research | Identified exit to Testing 39233 | -3/Research | Discovered exit to Testing (range 14) 39258 | -3/Research | Entered Testing 39389 | -3/Testing | Lost 4 parts (2n2w) 39508 | -3/Testing | Search patrols dispatched 39514 | -3/Testing | Found Prototype Energy Cannon 39598 | -3/Testing | Found Prototype Energy Cannon 39643 | -3/Testing | Spotted Striker 39643 | -3/Testing | Spotted Striker 39644 | -3/Testing | Identified Transdimensional Reconstructor 39644 | -3/Testing | Warped through subspace 39837 | -3/Testing | Core integrity fell below 50% 39893 | -3/Testing | Released all parts (7) 39907 | -3/Testing | Core integrity fell below 20% 39907 | -3/Testing | System corruption reached 10% 39910 | -3/Testing | Lost 14 parts (2p3n6u3w) 39913 | -3/Testing | Identified Hpw. Disruptor Cannon 39915 | -3/Testing | Identified Disintegrator 39922 | -3/Testing | Destroyed by G-67 Veteran with Field Laser Last Messages --------------- 39874_ Identified Thermal Defense Suite. 39876_ Critical hit (Burn: +50). 39879_ Enh. Quantum Rifle destroyed. 39879_ Adv. Thermal Defense Suite destroyed. 39883_ ALERT: Rogue bot located, Programmers report to Testing Zone 7F. 39885_ System corrupted: Heat flow error (+219). 39893_ Released Force Lance. 39893_ Released Exp. Armor Integrity Analyzer. 39893_ Released Lrg. Storage Unit. 39893_ Released Imp. Armor Integrity Analyzer. 39893_ Released Imp. Gyrokinetic Inverter. 39893_ Released Exp. Cloaking Device. 39893_ Released Thermal Defense Suite. 39894_ Extracted 1 matter. 39898_ Acquired 9 matter. 39913_ Identified Hpw. Disruptor Cannon. 39915_ Identified Disintegrator. 39917_ Machine disabled. 39919_ Slammed into P-80 Master. 39919_ Destabilizing: Core damaged (-13). Map ----- +----------------------------------------------------+ | ????????##### ???? | | ????????#########+########################## ???? | | ????????#### % " ######### # ???? | | ????????#### "" %%"########## # ???? | | ????????#### " " # ######### + ???? | | ????????#### """ ######???????????????????? | | ????????# " ######???????????????????? | | ????????#### """" " ######???????????????????? | | ????????#### """"""" #####????????????????????? | | ????????#### """"""" #####????????????????????? | | ????????#### #####????????????????????? | | ????????#### ####??????####???????????? | | ????????#### ####?????# ???????? ?? | | ???????????# ####?????# "??????? ?? | | ???????????####################### ""?????? | | ???????????######### # ""???#? | | ???????????######### " " "" # ?? # | | ???????????######### " " """ # # | | ???????????????????# """ """ # """" # ## | | ???????????????????# p" # """" / #? | | ???????????????????# # """" # #? | | ???????????????????#######/##+#### """" # #? | | ????????????????????????# pp #??# # #? | | ????????????????????????# #??# "# #? | | ????????????????????????# #??# ""# #? | | ????????????????????????#@ #??# F"# #? | | ????????????????????????# g#### ""# #? | | ????????????????????????# + # ?? | | ?????????????????######## ######+#### ??? | | ?????????????????# ###### #### ##### | | ?????????????????# g = % % % =# | | ?????????????????# ^ ##### ####%+ | | ???????#########?# ##""#+#"## # | | ???????# ?# "" #! ! ?# #] | | ???????# # """"""" # "" # #? | | ???????# # """"""""" p # """ # #?### | | ???????# + # S" # ##??? | | ???????# # g + # ##??? | | ???????# """"""" # ##T##""T""##g # """ #=#???? | | ???????? """""""?# ####?"""""## #[ """ #[#???? | | ???????????"""""?# #??????????# # """ #!#???? | | ???????????####### #??????????# # ?? ??#!#???? | | ???????????# # #??????????# ##########/#???? | | ???????????# """# #??###?????# ]!!#???? | | ???????????# """# #??#"#?????# ##########!#???? | | ???????????# R"# #?#" "?????# #???????#=##???? | | ???????????# ="""# ### "##???# ###########????? | | ???????????# "" # + " "#???# # ##????? | | ???????????# # # #???# # """ #?????? | | ??????????######+# # " " "#???# # """ #?????? | +----------------------------------------------------+ Best States ------------- Heat Dissipation 104 Energy Generation 71 Energy Capacity 770 Matter Stores 500 Matter Capacity 500 Sight Range 16 Terrain Scan Range 16 Terrain Scan Density 10 ECM Strength 1 Cloak Strength 4 Additional Mass Support 12 Base Temperature (-) 200 Armor Coverage 1025 Resistance: TH 30 Weapon Shielding 33 Evasion (%) 55 Targeting Accuracy 8 Target Analysis 6 Armor Integrity Analysis 50 Recoil Reduction 2 Salvage Targeting 4 Offensive Hacking 20 Item Schematics ----------------- Lgt. Fission Core | -6/Zion | Archive Wave Gun | -6/Zion | Archive Imp. Coolant Injector | -6/Zion | Archive Imp. Hardlight Generator | -6/Zion | Archive Imp. Component Analysis Suite | -6/Zion | Archive Imp. Reaction Control System | -6/Zion | Archive Adv. Target Analyzer | -6/Zion | Archive HERF Cannon | -6/Zion | Archive Adv. Melee Analysis Suite | -6/Zion | Archive Arm. Medium Treads | -6/Zion | Archive Hvy. Plasma Cannon | -6/Zion | Archive Hvy. Shock Bomb Launcher | -6/Zion | Archive Lrn. Tractor Beam | -6/Zion | Archive Fission Core | -6/Zion | Archive Assault Drone Bay | -5/Zhirov | Free Exp. Heat Sink | -5/Zhirov | Free Exp. Optical Array | -5/Zhirov | Free Imp. Arc Thrower | -5/Zhirov | Free Robot Schematics ------------------ A-02 Transporter | -6/Zion | Archive G-50 Soldier | -6/Zion | Archive Y-72 Warden | -6/Zion | Archive Fabricated ------------ Nothing Alien Tech Used ----------------- Integrated Dissipator Core Expander Transdimensional Reconstructor Achievements -------------- None Challenges ------------ None Game ------ Seed RemoteBoreSabre Manual? 0 Play Time 03:47:12 Cumulative 272.4 hours Start 2024.09.19 @ 10:10:52 End 2024.09.23 @ 17:24:51 Sessions 5 Manual Loads 0 Difficulty Rogue Special Mode None Game No. 223 Rogue 223 Adventurer 0 Explorer 0 Win Type - Total 2 Types 1/0/0/1/0/0/0/0/0 Lore% 71 Gallery% 77 Achievement% 57 Wizard Run 0 Options --------- Layout 2 ASCII 0 Keyboard 1 Movement Vi Keybinds 0 Fullscreen 1 Font 32/SmallcapsGlow Map View 77x44 Zoom Use 0% Tactical HUD 1 Map Filters NONE Filters NONE Steam 1 RUN: 0343eaa0-073f-43ad-adc3-1bd1a8cf0f8d